bitfinex-derivatives/quotes_BTCF0:USTF0_20251213
["timestamp","ask_amount","ask_price","bid_price","bid_amount"]
[1765642646212,0.14683292,90211.0,90210.0,0.46041]
[1765642652223,0.14683292,90211.0,90210.0,0.45941]
[1765642652423,0.14683292,90211.0,90210.0,0.46041]
[1765642652826,0.14683292,90211.0,90210.0,0.45941]
[1765642654827,0.14683292,90211.0,90210.0,0.45841]
[1765642656134,0.14683292,90211.0,90210.0,0.43103]
[1765642658136,0.14683292,90211.0,90210.0,0.4576]
[1765642660839,0.14683292,90211.0,90210.0,0.43103]
[1765642661038,0.08695627,90211.0,90210.0,0.43103]
[1765642662235,0.04286627,90211.0,90210.0,0.4576]
[1765642662437,0.06004308,90211.0,90210.0,0.4576]
[1765642663338,0.10274308,90211.0,90210.0,0.4576]
[1765642663527,0.14683308,90211.0,90210.0,0.4576]
[1765642664133,0.14683308,90211.0,90210.0,0.4586]
[1765642664333,0.08695627,90211.0,90210.0,0.4586]
[1765642664534,0.08695627,90211.0,90210.0,0.4596]
[1765642665237,0.08695627,90211.0,90210.0,0.4586]
[1765642665438,0.08695627,90211.0,90210.0,0.4596]
[1765642665943,0.08695627,90211.0,90210.0,0.4586]
[1765642666827,0.08695627,90211.0,90210.0,0.4596]
[1765642667833,0.08695627,90211.0,90210.0,0.4586]
[1765642668035,0.08695627,90211.0,90210.0,0.4596]
[1765642668842,0.08695627,90211.0,90210.0,0.4586]
[1765642669238,0.08695627,90211.0,90210.0,0.4576]
[1765642671050,0.00016627,90211.0,90210.0,0.4576]
[1765642672950,0.00016627,90211.0,90210.0,0.4586]
[1765642673541,0.00016627,90211.0,90210.0,0.4596]
[1765642674741,0.04286627,90211.0,90210.0,0.4596]
[1765642676555,0.08982627,90211.0,90210.0,0.4596]
[1765642677750,0.08982627,90211.0,90210.0,0.4586]
[1765642678150,0.00016627,90211.0,90210.0,0.4586]
[1765642679340,0.04305627,90211.0,90210.0,0.4586]
[1765642680448,0.04305627,90211.0,90210.0,0.4596]
[1765642680849,0.09001627,90211.0,90210.0,0.4596]
[1765642681555,0.09001627,90211.0,90210.0,0.43303]
[1765642681860,0.45081627,90211.0,90210.0,0.43303]
[1765642682368,0.45081627,90211.0,90210.0,0.09013]
[1765642683255,0.45081627,90211.0,90210.0,0.33893]
[1765642683456,0.45081627,90211.0,90210.0,0.33793]
[1765642683655,0.45081627,90211.0,90210.0,0.35313]
[1765642683859,0.45081627,90211.0,90210.0,0.08913]
[1765642684158,0.45081627,90211.0,90210.0,0.08813]
[1765642684353,0.45081627,90211.0,90210.0,0.37393]
[1765642688357,0.09001627,90211.0,90210.0,0.37393]
[1765642688561,0.45081627,90211.0,90210.0,0.37393]
[1765642688749,0.09001627,90211.0,90210.0,0.37393]
[1765642688952,0.45081627,90211.0,90210.0,0.08813]
[1765642689549,0.45081627,90211.0,90210.0,0.36143]
[1765642689951,0.45081627,90211.0,90210.0,0.34063]
[1765642690450,0.45081627,90211.0,90210.0,0.08813]
[1765642690861,0.45081627,90211.0,90210.0,0.33873]
[1765642691356,0.45081627,90211.0,90210.0,0.08813]
[1765642691656,0.45081627,90211.0,90207.0,0.2748]
[1765642691657,0.08985,90208.0,90207.0,0.2748]
[1765642691849,0.08985,90196.0,90195.0,0.11663]
[1765642692359,0.08985,90196.0,90195.0,0.32253]
[1765642694860,0.08985,90196.0,90195.0,0.32653]
[1765642699159,0.08985,90196.0,90195.0,0.2983]
[1765642700654,0.08985,90196.0,90195.0,0.31363]
[1765642701461,0.04289,90196.0,90195.0,0.31363]
[1765642702456,0.04289,90196.0,90195.0,0.10773]
[1765642702657,0.00565542,90197.0,90196.0,0.0884]
[1765642702858,0.05983664,90201.0,90200.0,0.0884]
[1765642703155,0.14968664,90201.0,90200.0,0.0884]
[1765642703470,0.15516331,90201.0,90200.0,0.3444]
[1765642704857,0.15516331,90201.0,90200.0,0.3454]
[1765642705567,0.15516331,90201.0,90200.0,0.3474]
[1765642708264,0.09532667,90201.0,90200.0,0.3474]
[1765642716965,0.45612667,90201.0,90200.0,0.3474]
[1765642725170,0.09532667,90201.0,90200.0,0.3474]
[1765642727283,0.09532667,90201.0,90200.0,0.37544]
[1765642742482,0.09532667,90201.0,90200.0,0.259]
[1765642742987,0.09532667,90201.0,90200.0,0.003]
[1765642743396,0.09532667,90201.0,90200.0,0.3025]
[1765642743796,0.09532667,90201.0,90200.0,0.2926]
[1765642744097,0.09532667,90201.0,90200.0,0.003]
[1765642744596,0.09532667,90201.0,90200.0,0.2764]
[1765642745197,0.17510146,90201.0,90200.0,0.2764]
[1765642745994,0.17510146,90201.0,90200.0,0.36963]
[1765642746997,0.17510146,90201.0,90200.0,0.09623]
[1765642748397,0.09532667,90201.0,90200.0,0.09623]
[1765642752697,0.81692667,90201.0,90200.0,0.09623]
[1765642755302,1.50928667,90201.0,90200.0,0.09623]
[1765642756411,0.78768667,90201.0,90200.0,0.09623]
[1765642756699,1.50928667,90201.0,90200.0,0.09623]
[1765642762806,1.50928667,90201.0,90200.0,0.04988]
[1765642766400,1.50928667,90201.0,90200.0,0.09478]
[1765642766705,1.50928667,90201.0,90200.0,0.04988]
[1765642766908,1.50928667,90201.0,90200.0,0.003]
[1765642767109,1.50928667,90201.0,90200.0,0.09543]
[1765642767494,0.81692667,90201.0,90200.0,0.09543]
[1765642767707,1.50928667,90201.0,90200.0,0.09543]
[1765642769201,1.22826146,90201.0,90200.0,0.09543]
[1765642770105,1.22826146,90201.0,90200.0,0.04902]
[1765642770506,1.22826146,90201.0,90200.0,0.09543]
[1765642771610,1.14848667,90201.0,90200.0,0.09543]
[1765642773808,1.14848667,90201.0,90200.0,0.04902]
[1765642774515,1.14848667,90201.0,90200.0,0.09543]
[1765642779417,1.14848667,90201.0,90200.0,0.003]
[1765642779619,1.14848667,90201.0,90200.0,0.04902]
[1765642781323,1.14848667,90201.0,90200.0,0.09543]
[1765642782120,1.14848667,90201.0,90200.0,0.04902]
[1765642782619,0.78768667,90201.0,90200.0,0.04902]
[1765642782822,1.14848667,90201.0,90200.0,0.04902]
[1765642783421,1.14848667,90201.0,90200.0,0.09543]
[1765642784106,0.78768667,90201.0,90200.0,0.09543]
[1765642784304,1.14848667,90201.0,90200.0,0.09543]
[1765642784605,0.78768667,90201.0,90200.0,0.09543]
[1765642784809,1.14848667,90201.0,90200.0,0.09543]
[1765642785416,0.78768667,90201.0,90200.0,0.09543]
[1765642785618,1.14848667,90201.0,90200.0,0.09543]
[1765642789513,1.14848667,90201.0,90200.0,0.04902]
[1765642790222,1.14848667,90201.0,90200.0,0.003]
[1765642790520,1.14848667,90201.0,90200.0,0.04902]
[1765642790721,1.14848667,90201.0,90200.0,0.09543]
[1765642791326,1.14848667,90201.0,90200.0,0.04902]
[1765642795630,1.14848667,90201.0,90200.0,0.04676]
[1765642796218,1.14848667,90201.0,90200.0,0.09212]
[1765642798326,1.14848667,90201.0,90200.0,0.04676]
[1765642798829,1.14848667,90201.0,90200.0,0.09212]
[1765642799031,1.14848667,90201.0,90200.0,0.04676]
[1765642802638,0.45612667,90201.0,90200.0,0.09212]
[1765642802841,1.14848667,90201.0,90200.0,0.09212]
[1765642803036,1.14848667,90201.0,90200.0,0.11966]
[1765642803538,1.14848667,90201.0,90200.0,0.48796]
[1765642803733,1.14848667,90201.0,90200.0,0.39456]
[1765642804237,1.14848667,90201.0,90200.0,0.36702]
[1765642805640,0.45612667,90201.0,90200.0,0.36702]
[1765642805841,1.12020667,90201.0,90200.0,0.36702]
[1765642807744,1.12020667,90201.0,90200.0,0.2779]
[1765642807745,1.20007811,90201.0,90200.0,0.2779]
[1765642807950,1.24368484,90201.0,90200.0,0.2779]
[1765642808248,1.12020667,90201.0,90200.0,0.2779]
[1765642808741,1.12020667,90201.0,90200.0,0.003]
[1765642814560,0.75940667,90201.0,90200.0,0.003]
[1765642814761,1.48100667,90201.0,90200.0,0.003]
[1765642820765,0.75940667,90201.0,90200.0,0.003]
[1765642820956,1.48100667,90201.0,90200.0,0.003]
[1765642821762,1.39115667,90201.0,90198.0,0.2806]
[1765642821969,0.08688,90199.0,90198.0,0.2806]
[1765642822267,0.08688,90193.0,90192.0,0.04550627]
[1765642822572,1.14,90193.0,90192.0,0.04550627]
[1765642822862,1.14,90193.0,90192.0,0.09040627]
[1765642823869,1.14,90193.0,90192.0,0.35408627]
[1765642824269,1.14,90193.0,90192.0,0.43138627]
[1765642824671,1.14,90193.0,90192.0,0.42100627]
[1765642827069,0.7792,90193.0,90192.0,0.42100627]
[1765642827374,1.14,90193.0,90192.0,0.42100627]
[1765642827573,0.7792,90193.0,90192.0,0.42100627]
[1765642827773,1.14,90193.0,90192.0,0.42100627]
[1765642829178,1.14,90193.0,90192.0,0.44865627]
[1765642831076,0.44768,90193.0,90192.0,0.44865627]
[1765642831375,1.14,90193.0,90192.0,0.44865627]
[1765642831870,0.44768,90193.0,90192.0,0.44865627]
[1765642832074,1.14,90193.0,90192.0,0.44865627]
[1765642833177,0.44768,90193.0,90192.0,0.44865627]
[1765642833375,1.14,90193.0,90192.0,0.44865627]
[1765642840085,1.14,90193.0,90192.0,0.42100627]
[1765642840377,1.14,90193.0,90192.0,0.37344627]
[1765642840577,1.14,90193.0,90192.0,0.41499627]
[1765642840773,1.14,90193.0,90192.0,0.09039627]
[1765642844478,1.14,90193.0,90192.0,0.31909627]
[1765642844872,1.14,90193.0,90192.0,0.31019627]
[1765642845075,1.14,90193.0,90192.0,0.09039627]
[1765642845884,1.14,90193.0,90192.0,0.30489627]
[1765642846278,1.14,90193.0,90192.0,0.30779627]
[1765642846479,1.14,90193.0,90192.0,0.09039627]
[1765642847079,0.7792,90193.0,90192.0,0.32279627]
[1765642847286,1.14,90193.0,90192.0,0.31859627]
[1765642847585,1.14,90193.0,90192.0,0.09039627]
[1765642847885,1.14,90193.0,90192.0,0.32589627]
[1765642848075,1.14,90193.0,90192.0,0.09039627]
[1765642848281,1.14,90193.0,90192.0,0.29029627]
[1765642848584,1.14,90193.0,90192.0,0.09039627]
[1765642848779,1.14,90193.0,90192.0,0.30169627]
[1765642848978,1.14,90193.0,90192.0,0.09039627]
[1765642849584,1.14,90193.0,90192.0,0.28969627]
[1765642849885,1.14,90193.0,90192.0,0.29479627]
[1765642850089,1.14,90193.0,90192.0,0.09039627]
[1765642850689,1.14,90193.0,90192.0,0.30959627]
[1765642851081,1.14,90193.0,90192.0,0.30629627]
[1765642851283,1.14,90193.0,90192.0,0.09039627]
[1765642851790,1.14,90193.0,90192.0,0.31149627]
[1765642852285,1.14,90193.0,90192.0,0.33099627]
[1765642852791,1.14,90193.0,90192.0,0.33889627]
[1765642854788,0.7792,90193.0,90192.0,0.33889627]
[1765642854984,1.14,90193.0,90192.0,0.33889627]
[1765642869485,0.8590428,90193.0,90192.0,0.33889627]
[1765642869685,1.2198428,90193.0,90192.0,0.33889627]
[1765642874601,1.14,90193.0,90192.0,0.33889627]
[1765642875390,1.141,90193.0,90192.0,0.33589627]
[1765642875796,1.142,90193.0,90192.0,0.33289627]
[1765642878008,1.142,90193.0,90192.0,0.24866627]
[1765642878302,1.142,90193.0,90192.0,0.04194627]
[1765642878506,1.142,90193.0,90192.0,0.08451627]
[1765642878706,1.22187747,90193.0,90192.0,0.08451627]
[1765642889415,1.22187747,90193.0,90192.0,0.04194627]
[1765642890410,1.22187747,90193.0,90192.0,0.00016627]
[1765642891301,1.142,90193.0,90192.0,0.00016627]
[1765642895616,1.142,90193.0,90192.0,0.04446627]
[1765642897422,1.142,90193.0,90192.0,0.08882627]
[1765642902734,1.22186464,90193.0,90192.0,0.08882627]
[1765642907130,1.142,90193.0,90192.0,0.08882627]
[1765642907629,1.2218653,90193.0,90192.0,0.08882627]
[1765642908131,1.142,90193.0,90192.0,0.08882627]
[1765642908427,1.2218653,90193.0,90192.0,0.08882627]
[1765642909124,1.142,90193.0,90192.0,0.08882627]
[1765642910620,1.2218653,90193.0,90192.0,0.08882627]
[1765642912433,0.8610653,90193.0,90192.0,0.08882627]
[1765642912729,1.2218653,90193.0,90192.0,0.08882627]
[1765642916331,0.8610653,90193.0,90192.0,0.08882627]
[1765642916534,1.2218653,90193.0,90192.0,0.08882627]
[1765642921143,1.2218653,90193.0,90192.0,0.04446627]
[1765642921745,1.2218653,90193.0,90192.0,0.08972627]
[1765642922239,1.2218653,90193.0,90192.0,0.04446627]
[1765642924547,0.8610653,90193.0,90192.0,0.04446627]
[1765642924747,1.2218653,90193.0,90192.0,0.04446627]
[1765642925762,0.8610653,90193.0,90192.0,0.04446627]
[1765642926063,1.2218653,90193.0,90192.0,0.04446627]
[1765642929762,1.2218653,90193.0,90192.0,0.00016627]
[1765642929961,1.2218653,90193.0,90189.0,0.3474]
[1765642929962,0.10548,90190.0,90189.0,0.3474]
[1765642930154,0.82708,90190.0,90189.0,0.3474]
[1765642930461,0.11369,90174.0,90165.0,0.1189]
[1765642930656,0.11369,90174.0,90159.0,0.3608]
[1765642930657,1.16677,90174.0,90159.0,0.3608]
[1765642930967,1.16677,90174.0,90165.0,0.7126]
[1765642931459,1.2266239,90174.0,90168.0,0.8375]
[1765642931660,1.2266239,90174.0,90168.0,0.821]
[1765642932163,1.2266239,90174.0,90170.0,0.8655]
[1765642932463,1.2266239,90174.0,90170.0,0.8445]
[1765642933064,1.2266239,90174.0,90173.0,0.00211123]
[1765642933458,1.16677,90174.0,90173.0,0.04341123]
[1765642933664,1.16677,90174.0,90173.0,0.08867123]
[1765642933860,1.16677,90174.0,90173.0,0.09067123]
[1765642935871,1.17230707,90174.0,90173.0,0.09067123]
[1765642939172,1.17230707,90174.0,90173.0,0.00411123]
[1765642941273,1.23205338,90174.0,90173.0,0.00411123]
[1765642943066,1.17230707,90174.0,90173.0,0.00411123]
[1765642957184,0.11289,90165.0,90164.0,0.63176627]
[1765642957381,0.47369,90165.0,90164.0,0.72157627]
[1765642957582,0.47369,90165.0,90164.0,1.01257627]
[1765642957985,0.47369,90165.0,90164.0,0.08997627]
[1765642958480,0.47369,90165.0,90164.0,0.09297627]
[1765642958670,0.47369,90165.0,90164.0,0.09597627]
[1765642958876,0.47369,90165.0,90164.0,1.06797627]
[1765642959275,0.47369,90165.0,90164.0,0.09597627]
[1765642959789,0.53344921,90165.0,90164.0,1.02017627]
[1765642960182,0.47369,90165.0,90164.0,1.02017627]
[1765642961784,0.47369,90165.0,90164.0,0.93036627]
[1765642962389,0.47376768,90165.0,90164.0,0.93036627]
[1765642962991,0.55360174,90165.0,90164.0,0.93036627]
[1765642963192,0.47376768,90165.0,90164.0,0.93036627]
[1765642963382,0.47376768,90165.0,90164.0,0.00616627]
[1765642964291,0.55345976,90165.0,90164.0,0.00616627]
[1765642964492,0.55345976,90165.0,90164.0,0.00316627]
[1765642964691,0.47376768,90165.0,90164.0,0.00316627]
[1765642964891,0.55346072,90165.0,90164.0,0.00016627]
[1765642965196,0.47376768,90165.0,90164.0,0.00016627]
[1765642968397,0.55342292,90165.0,90164.0,0.00016627]
[1765642971286,1.24590292,90165.0,90164.0,0.04581627]
[1765642971486,1.24590292,90165.0,90164.0,0.00016627]
[1765642973802,1.24590292,90165.0,90164.0,1.15026627]
[1765642974001,1.24590292,90165.0,90164.0,1.10626627]
[1765642974294,1.24590292,90165.0,90164.0,0.93946627]
[1765642974681,1.24590292,90165.0,90164.0,0.94396627]
[1765642975090,1.24590292,90165.0,90164.0,0.00016627]
[1765642977387,0.88510292,90165.0,90164.0,0.00016627]
[1765642977699,1.60670292,90165.0,90164.0,0.00016627]
[1765642983202,1.52704768,90165.0,90164.0,0.00016627]
[1765642984798,0.91424001,90165.0,90164.0,0.08656627]
[1765642985097,1.58195001,90165.0,90164.0,0.08656627]
[1765642986404,1.50227768,90165.0,90164.0,0.08656627]
[1765642989098,0.80975768,90165.0,90164.0,0.08656627]
[1765642989302,1.49291768,90165.0,90164.0,0.08656627]
[1765642990099,1.49291768,90165.0,90164.0,0.94476627]
[1765642990300,1.49291768,90165.0,90164.0,0.96836627]
[1765642990696,1.49291768,90165.0,90164.0,0.99016627]
[1765642991005,0.77131768,90165.0,90164.0,0.96656627]
[1765642991202,1.13211768,90165.0,90164.0,0.96656627]
[1765642994299,0.77131768,90165.0,90164.0,0.97765627]
[1765642994506,0.08815768,90165.0,90164.0,0.97765627]
[1765642994807,0.78067768,90165.0,90164.0,0.97765627]
[1765642996399,0.69259768,90165.0,90164.0,0.97765627]
[1765642996599,7.768e-05,90165.0,90164.0,0.97765627]
[1765642997609,0.05988067,90165.0,90164.0,0.97765627]
[1765642999007,0.14673067,90165.0,90164.0,0.97765627]
[1765642999310,0.08692768,90165.0,90164.0,0.97765627]
[1765643004812,0.08692768,90165.0,90164.0,0.96656627]
[1765643008114,0.14673067,90165.0,90164.0,0.96656627]
[1765643008320,0.08692768,90165.0,90164.0,0.96656627]
[1765643009322,0.14673067,90165.0,90164.0,0.96656627]
[1765643010024,0.08692768,90165.0,90164.0,0.96656627]
[1765643010225,0.14673067,90165.0,90164.0,0.96656627]
[1765643010416,0.08692768,90165.0,90164.0,0.96656627]
[1765643010819,0.14673067,90165.0,90164.0,0.96656627]
[1765643011717,0.08692768,90165.0,90164.0,0.96656627]
[1765643012227,0.14673067,90165.0,90164.0,0.96656627]
[1765643013816,0.05988067,90165.0,90164.0,0.96656627]
[1765643014233,0.04449768,90165.0,90164.0,0.98590627]
[1765643014830,0.10430042,90165.0,90164.0,0.98590627]
[1765643015330,0.04449768,90165.0,90164.0,0.98590627]
[1765643015533,7.768e-05,90165.0,90164.0,0.98590627]
[1765643015921,0.04449768,90165.0,90164.0,0.98590627]
[1765643016324,7.768e-05,90165.0,90164.0,0.98590627]
[1765643021019,0.04449768,90165.0,90164.0,0.98590627]
[1765643022334,7.768e-05,90165.0,90164.0,0.98590627]
[1765643023121,0.04449768,90165.0,90164.0,0.98590627]
[1765643026135,7.768e-05,90165.0,90164.0,0.98590627]
[1765643027725,0.08937768,90165.0,90164.0,0.98590627]
[1765643031542,0.08937768,90165.0,90164.0,0.96656627]
[1765643038747,0.45017768,90165.0,90164.0,0.96656627]
[1765643040435,0.45017768,90165.0,90164.0,0.98354627]
[1765643042241,0.45017768,90165.0,90164.0,0.88016627]
[1765643042443,0.45017768,90165.0,90164.0,0.96746627]
[1765643042743,0.45017768,90165.0,90164.0,0.08746627]
[1765643043248,0.45017768,90165.0,90164.0,1.00186627]
[1765643043541,1.14261768,90165.0,90164.0,1.14616627]
[1765643048554,0.73441768,90165.0,90164.0,1.14616627]
[1765643048752,0.69251768,90165.0,90164.0,1.14616627]
[1765643049346,0.73441768,90165.0,90164.0,1.14616627]
[1765643049553,0.77783768,90165.0,90164.0,1.14616627]
[1765643051857,0.79286768,90165.0,90164.0,1.05886627]
[1765643052245,0.83652104,90165.0,90164.0,1.05886627]
[1765643052654,0.83652104,90165.0,90164.0,0.00016627]
[1765643054757,0.83652104,90165.0,90164.0,1.17516627]
[1765643055062,0.83652104,90165.0,90164.0,0.00016627]
[1765643055249,0.83652104,90165.0,90164.0,1.18796627]
[1765643055650,0.83652104,90165.0,90164.0,0.04385627]
[1765643056145,0.83652104,90165.0,90164.0,0.00016627]
[1765643056651,0.83652104,90165.0,90164.0,1.08956627]
[1765643056956,0.83652104,90165.0,90164.0,0.00016627]
[1765643057161,0.83652104,90165.0,90164.0,1.12466627]
[1765643057562,0.83652104,90165.0,90164.0,0.00016627]
[1765643057763,0.83652104,90165.0,90164.0,0.08746627]
[1765643059658,1.55812104,90165.0,90164.0,0.88466627]
[1765643060165,1.55812104,90165.0,90164.0,0.08746627]
[1765643061854,1.55812104,90165.0,90164.0,0.00016627]
[1765643065263,1.55812104,90165.0,90164.0,0.04385627]
[1765643065568,1.55812104,90165.0,90164.0,0.08682627]
[1765643065956,1.55812104,90165.0,90164.0,0.00016627]
[1765643066359,0.11202,90159.0,90158.0,0.8734]
[1765643066966,0.08663,90157.0,90156.0,0.8731]
[1765643067161,0.08663,90145.0,90144.0,0.11448]
[1765643067367,0.77919,90145.0,90144.0,0.11448]
[1765643067669,0.77919,90145.0,90144.0,0.84648]
[1765643068557,0.77919,90145.0,90144.0,0.84948]
[1765643068858,0.77919,90145.0,90144.0,0.85248]
[1765643069863,0.3608,90148.0,90144.0,0.85248]
[1765643069864,0.3608,90148.0,90147.0,0.11278]
[1765643070070,0.00016638,90154.0,90147.0,0.11278]
[1765643070071,0.00016638,90154.0,90153.0,0.11278]
[1765643070464,0.00016638,90154.0,90153.0,1.04778]
[1765643070765,0.00016638,90154.0,90153.0,2.01608]
[1765643070973,0.00016638,90154.0,90153.0,1.08108]
[1765643071165,0.00016638,90154.0,90153.0,1.08308]
[1765643071669,0.00016638,90154.0,90153.0,1.08508]
[1765643097693,0.00016638,90154.0,90153.0,0.11678]
[1765643099094,0.00016638,90154.0,90153.0,1.32038]
[1765643103716,0.01,98200.0,90166.0,0.10797]
[1765643103717,0.4404805,90167.0,90166.0,0.10797]
[1765643103908,0.44606512,90167.0,90166.0,0.10797]
[1765643104103,0.48732512,90167.0,90166.0,0.10797]
[1765643104302,0.09161462,90167.0,90166.0,0.10797]
[1765643104497,0.09165583,90167.0,90166.0,0.80537]
[1765643106514,0.00562583,90167.0,90166.0,0.80537]
[1765643106908,0.04688583,90167.0,90166.0,0.80537]
[1765643108611,0.09165583,90167.0,90166.0,0.80537]
[1765643113604,0.00562583,90167.0,90166.0,0.80537]
[1765643114715,4.121e-05,90167.0,90166.0,0.80537]
[1765643116010,0.08607121,90167.0,90166.0,0.80537]
[1765643120422,4.121e-05,90167.0,90166.0,0.80537]
[1765643127928,4.121e-05,90167.0,90166.0,2.30537]
[1765643131330,0.05984441,90167.0,90166.0,2.30537]
[1765643134015,0.48250121,90167.0,90166.0,0.5872229]
[1765643134216,1.91323339,90167.0,90166.0,0.44110832]
[1765643134515,1.83077339,90167.0,90166.0,0.39980542]
[1765643134923,1.83077339,90167.0,90165.0,0.3798]
[1765643135133,1.83077339,90167.0,90164.0,0.3819]
[1765643135316,0.13937672,90165.0,90164.0,0.356]
[1765643135522,0.13941793,90165.0,90164.0,0.356]
[1765643135722,4.121e-05,90165.0,90164.0,0.3648]
[1765643135923,4.121e-05,90165.0,90164.0,0.3341]
[1765643136635,0.00304121,90165.0,90164.0,0.3341]
[1765643138036,0.04678877,90165.0,90164.0,0.3341]
[1765643138236,0.73958877,90165.0,90164.0,0.3341]
[1765643138435,0.69584121,90165.0,90164.0,0.3341]
[1765643139640,0.7404366,90165.0,90164.0,0.3341]
[1765643139825,0.69584121,90165.0,90164.0,0.3341]
[1765643140330,1.13983666,90165.0,90164.0,0.3341]
[1765643140728,1.1394964,90165.0,90164.0,0.3341]
[1765643140928,1.09584121,90165.0,90164.0,0.3341]
[1765643141129,1.1394964,90165.0,90164.0,0.3341]
[1765643141728,1.09584121,90165.0,90164.0,0.3341]
[1765643142136,1.09584121,90165.0,90164.0,0.36035]
[1765643142338,1.1950904,90165.0,90164.0,0.36035]
[1765643143237,1.09584121,90165.0,90164.0,0.36035]
[1765643143439,1.14028397,90165.0,90164.0,0.36035]
[1765643143638,1.09584121,90165.0,90164.0,0.36035]
[1765643143840,1.81744121,90165.0,90164.0,0.36035]
[1765643144036,1.8620729,90165.0,90164.0,0.36035]
[1765643144741,1.81744121,90165.0,90164.0,0.36035]
[1765643145440,1.86137104,90165.0,90164.0,0.36035]
[1765643145636,1.46137104,90165.0,90164.0,0.36035]
[1765643145837,1.41744121,90165.0,90164.0,0.36035]
[1765643146834,1.46177884,90165.0,90164.0,0.36035]
[1765643147029,1.4620046,90165.0,90164.0,0.36035]
[1765643147944,1.41744121,90165.0,90164.0,0.36035]
[1765643149033,1.46230608,90165.0,90164.0,0.44395]
[1765643149228,1.46230608,90165.0,90164.0,0.36035]
[1765643149938,1.41752121,90165.0,90164.0,0.36035]
[1765643150146,1.46116761,90165.0,90164.0,0.36035]
[1765643151247,1.41752121,90165.0,90164.0,0.36035]
[1765643151833,1.46142593,90165.0,90164.0,0.36035]
[1765643152437,1.46062219,90165.0,90164.0,0.36035]
[1765643153537,1.41752121,90165.0,90164.0,0.36035]
[1765643154245,1.41748,90165.0,90164.0,0.34076813]
[1765643154738,1.46115172,90165.0,90164.0,0.32966916]
[1765643155145,1.46115172,90165.0,90164.0,0.31857019]
[1765643155440,1.46082892,90165.0,90164.0,0.30747122]
[1765643155843,1.46082892,90165.0,90164.0,0.29637225]
[1765643156147,1.46080774,90165.0,90164.0,0.29637225]
[1765643156444,1.46080774,90165.0,90164.0,0.28527328]
[1765643156641,1.46200062,90165.0,90164.0,0.28527328]
[1765643157745,1.46166751,90165.0,90164.0,0.28527328]
[1765643158640,0.7246,90165.0,90164.0,0.32720328]
[1765643158845,2.66846872,90165.0,90164.0,0.37089328]
[1765643159046,2.62428121,90165.0,90164.0,0.37089328]
[1765643160346,2.66862879,90165.0,90164.0,0.37089328]
[1765643160649,2.66862879,90165.0,90164.0,0.28527328]
[1765643161440,2.6685223,90165.0,90164.0,0.28527328]
[1765643162035,2.62428121,90165.0,90164.0,0.28527328]
[1765643162247,2.6685223,90165.0,90164.0,0.28527328]
[1765643162443,2.80789902,90165.0,90164.0,0.28527328]
[1765643162751,2.80706378,90165.0,90164.0,0.28527328]
[1765643163248,2.80706378,90165.0,90164.0,0.1354156]
[1765643163641,2.66813582,90165.0,90164.0,0.02625]
[1765643163842,2.62428121,90165.0,90164.0,0.02625]
[1765643164148,2.66813582,90165.0,90164.0,0.02625]
[1765643164752,2.62428121,90165.0,90164.0,0.02625]
[1765643165147,2.66864837,90165.0,90164.0,0.02625]
[1765643165552,2.62428121,90165.0,90164.0,0.02625]
[1765643165753,2.66864837,90165.0,90164.0,0.02625]
[1765643166947,2.66828753,90165.0,90164.0,0.02625]
[1765643168051,2.62428121,90165.0,90164.0,0.02625]
[1765643168253,2.66880371,90165.0,90164.0,0.02625]
[1765643168748,0.76916371,90165.0,90164.0,0.02625]
[1765643169052,1.46204371,90165.0,90164.0,0.02625]
[1765643169353,1.46204371,90165.0,90164.0,0.11291]
[1765643169650,1.46212077,90165.0,90164.0,0.11291]
[1765643169852,1.41752121,90165.0,90164.0,0.11291]
[1765643170050,1.46212077,90165.0,90164.0,0.11291]
[1765643170252,1.41752121,90165.0,90164.0,0.11291]
[1765643170454,1.46212077,90165.0,90164.0,0.11291]
[1765643170851,1.41752121,90165.0,90164.0,0.11291]
[1765643171053,1.46065627,90165.0,90164.0,0.11291]
[1765643172050,1.46197323,90165.0,90164.0,0.11291]
[1765643172947,1.46218204,90165.0,90164.0,0.11291]
[1765643173453,1.46218204,90165.0,90164.0,0.07621117]
[1765643173637,0.08834,90164.0,90163.0,0.33697]
[1765643173839,0.08834,90164.0,90163.0,0.38066]
[1765643174551,0.08834,90164.0,90163.0,0.294]
[1765643174752,0.22903622,90164.0,90163.0,0.294]
[1765643175352,0.23003622,90164.0,90163.0,0.294]
[1765643176254,0.09038121,90164.0,90163.0,0.294]
[1765643176453,0.09038121,90164.0,90163.0,0.38066]
[1765643178563,0.23003783,90164.0,90163.0,0.38066]
[1765643181866,0.95163783,90164.0,90163.0,0.38066]
[1765643187371,0.09038121,90164.0,90163.0,0.38066]
[1765643187556,0.81198121,90164.0,90163.0,0.38066]
[1765643191583,1.50474121,90164.0,90163.0,0.38066]
[1765643193477,1.50474121,90164.0,90163.0,0.294]
[1765643195679,1.50474121,90164.0,90163.0,0.34646]
[1765643196686,1.50474121,90164.0,90163.0,0.40201]
[1765643201587,0.78314121,90164.0,90163.0,0.40201]
[1765643201787,1.50474121,90164.0,90163.0,0.40201]
[1765643213906,1.50474121,90164.0,90163.0,0.294]
[1765643214308,1.50474121,90164.0,90163.0,0.40201]
[1765643221503,1.50474121,90164.0,90163.0,0.294]
[1765643222403,1.50474121,90164.0,90163.0,0.3445]
[1765643222603,1.50474121,90164.0,90163.0,0.39811]
[1765643225704,0.78314121,90164.0,90163.0,0.39811]
[1765643225901,1.50474121,90164.0,90163.0,0.39811]
[1765643229131,0.78314121,90164.0,90163.0,0.39811]
[1765643229321,1.50474121,90164.0,90163.0,0.39811]
[1765643229721,0.78314121,90164.0,90163.0,0.39811]
[1765643229916,1.50474121,90164.0,90163.0,0.39811]
[1765643237023,0.78314121,90164.0,90163.0,0.39811]
[1765643237228,1.50474121,90164.0,90163.0,0.39811]
[1765643239722,0.78314121,90164.0,90163.0,0.39811]
[1765643239928,1.50474121,90164.0,90163.0,0.39811]
[1765643245929,1.50474121,90164.0,90163.0,0.294]
[1765643259444,0.81198121,90164.0,90163.0,0.294]
[1765643259638,1.50462121,90164.0,90163.0,0.294]
[1765643260637,0.78302121,90164.0,90163.0,0.294]
[1765643260832,1.50462121,90164.0,90163.0,0.294]
[1765643274552,1.50462121,90164.0,90163.0,0.39358]
[1765643287958,1.50462121,90164.0,90163.0,0.294]
[1765643288662,1.50458,90164.0,90163.0,0.294]
[1765643295265,1.50458,90164.0,90163.0,0.34388]